[Event "Live Chess"]
[Site "Chess.com"]
[Date "2023.05.20"]
[Round "-"]
[White "SirEntrails"]
[Black "amazinggoalkeeper"]
[Result "0-1"]
[WhiteElo "504"]
[BlackElo "488"]
[TimeControl "300"]
[EndTime "9:09:22 PDT"]
[Termination "amazinggoalkeeper won by checkmate"]

1. e4 {[%clk 0:04:58.7]} 1... e5 {[%clk 0:04:57.8]} 2. Nf3 {[%clk 0:04:58.1]}
2... Nc6 {[%clk 0:04:53.3]} 3. Bc4 {[%clk 0:04:57.4]} 3... Nd4 {[%clk
0:04:51.5]} 4. Nxd4 {[%clk 0:04:51.4]} 4... exd4 {[%clk 0:04:50.3]} 5. O-O
{[%clk 0:04:50.1]} 5... c5 {[%clk 0:04:48.6]} 6. c3 {[%clk 0:04:46.7]} 6... dxc3
{[%clk 0:04:46.3]} 7. dxc3 {[%clk 0:04:44.6]} 7... b6 {[%clk 0:04:46.2]} 8. Qf3
{[%clk 0:04:41.2]} 8... f6 {[%clk 0:04:42.7]} 9. Qh5+ {[%clk 0:04:39.2]} 9... g6
{[%clk 0:04:41.6]} 10. Qf3 {[%clk 0:04:32.4]} 10... Bd6 {[%clk 0:04:40.2]} 11.
Be3 {[%clk 0:04:25.6]} 11... Qe7 {[%clk 0:04:40.1]} 12. Nd2 {[%clk 0:04:22.7]}
12... Qe5 {[%clk 0:04:38.5]} 13. g3 {[%clk 0:04:20.4]} 13... f5 {[%clk
0:04:35.3]} 14. exf5 {[%clk 0:04:18.7]} 14... gxf5 {[%clk 0:04:34.6]} 15. Bxg8
{[%clk 0:04:10.4]} 15... Rxg8 {[%clk 0:04:27.8]} 16. Nc4 {[%clk 0:04:09.2]}
16... Qe4 {[%clk 0:04:23.9]} 17. Qxe4+ {[%clk 0:04:05.8]} 17... fxe4 {[%clk
0:04:22.4]} 18. Nxd6+ {[%clk 0:04:04.1]} 18... Ke7 {[%clk 0:04:21.1]} 19. Nxc8+
{[%clk 0:04:03.1]} 19... Raxc8 {[%clk 0:04:19.3]} 20. Rfe1 {[%clk 0:03:53.7]}
20... d5 {[%clk 0:03:50.7]} 21. b3 {[%clk 0:03:48.4]} 21... h5 {[%clk
0:03:46.1]} 22. Bf4 {[%clk 0:03:46.9]} 22... h4 {[%clk 0:03:43.6]} 23. c4 {[%clk
0:03:41.5]} 23... hxg3 {[%clk 0:03:42]} 24. fxg3 {[%clk 0:03:38.4]} 24... d4
{[%clk 0:03:39.1]} 25. Rxe4+ {[%clk 0:03:36]} 25... Kd7 {[%clk 0:03:36.5]} 26.
Rae1 {[%clk 0:03:34.8]} 26... Rge8 {[%clk 0:03:34.7]} 27. Rxe8 {[%clk
0:03:32.8]} 27... Rxe8 {[%clk 0:03:34.6]} 28. Rxe8 {[%clk 0:03:30.6]} 28... Kxe8
{[%clk 0:03:34.5]} 29. Bb8 {[%clk 0:03:28]} 29... Kf7 {[%clk 0:03:34.4]} 30.
Bxa7 {[%clk 0:03:27.3]} 30... Kg6 {[%clk 0:03:33.5]} 31. Bxb6 {[%clk 0:03:26.6]}
31... d3 {[%clk 0:03:33.2]} 32. Bxc5 {[%clk 0:03:25.7]} 32... d2 {[%clk
0:03:32.5]} 33. a4 {[%clk 0:03:13.5]} 33... d1=Q+ {[%clk 0:03:29.5]} 34. Kg2
{[%clk 0:03:13.2]} 34... Qc2+ {[%clk 0:03:25.5]} 35. Kf3 {[%clk 0:03:08.4]}
35... Qxb3+ {[%clk 0:03:23.8]} 36. Kg2 {[%clk 0:03:07.8]} 36... Qc2+ {[%clk
0:03:21.9]} 37. Kf3 {[%clk 0:03:05]} 37... Qxc4 {[%clk 0:03:21.1]} 38. Be3
{[%clk 0:03:01.6]} 38... Qxa4 {[%clk 0:03:19.3]} 39. h4 {[%clk 0:03:00.1]} 39...
Qc6+ {[%clk 0:03:17.4]} 40. Kg4 {[%clk 0:02:58.3]} 40... Qe4+ {[%clk 0:03:15.9]}
41. Kh3 {[%clk 0:02:56.4]} 41... Kh5 {[%clk 0:03:12.3]} 42. Bg5 {[%clk
0:02:52.9]} 42... Qh1# {[%clk 0:03:09.8]} 0-1

[Event "Live Chess"]
[Site "Chess.com"]
[Date "2023.05.20"]
[Round "-"]
[White "Krishtwist2013gmailc"]
[Black "jagbama"]
[Result "0-1"]
[WhiteElo "967"]
[BlackElo "1129"]
[TimeControl "300"]
[EndTime "9:09:29 PDT"]
[Termination "jagbama won by checkmate"]

1. e4 {[%clk 0:04:56]} 1... e5 {[%clk 0:04:57.4]} 2. Nf3 {[%clk 0:04:53.7]} 2...
Nc6 {[%clk 0:04:56.5]} 3. c3 {[%clk 0:04:53.1]} 3... Nf6 {[%clk 0:04:50.3]} 4.
d4 {[%clk 0:04:52.2]} 4... exd4 {[%clk 0:04:45.4]} 5. Nxd4 {[%clk 0:04:49.5]}
5... Nxd4 {[%clk 0:04:42.7]} 6. Qxd4 {[%clk 0:04:48.7]} 6... c5 {[%clk
0:04:39.9]} 7. Qc4 {[%clk 0:04:46.5]} 7... d5 {[%clk 0:04:30.6]} 8. Qe2 {[%clk
0:04:42]} 8... dxe4 {[%clk 0:04:26.4]} 9. Be3 {[%clk 0:04:40.8]} 9... Be7 {[%clk
0:04:17.2]} 10. f3 {[%clk 0:04:39]} 10... O-O {[%clk 0:04:03.3]} 11. Nd2 {[%clk
0:04:33.8]} 11... exf3 {[%clk 0:03:55.7]} 12. gxf3 {[%clk 0:04:32.5]} 12... b6
{[%clk 0:03:37]} 13. O-O-O {[%clk 0:04:30.9]} 13... a5 {[%clk 0:03:04.5]} 14.
Ne4 {[%clk 0:04:27.6]} 14... Qc7 {[%clk 0:02:56.1]} 15. Nxf6+ {[%clk 0:04:23.3]}
15... Bxf6 {[%clk 0:02:55.3]} 16. Rd3 {[%clk 0:04:07.7]} 16... Bf5 {[%clk
0:02:53.3]} 17. Rd2 {[%clk 0:04:01.4]} 17... Rfe8 {[%clk 0:02:51.8]} 18. Qf2
{[%clk 0:03:57.4]} 18... h6 {[%clk 0:02:31.5]} 19. Bb5 {[%clk 0:03:55.9]} 19...
Rxe3 {[%clk 0:02:29.7]} 20. Qxe3 {[%clk 0:03:51.1]} 20... Bg5 {[%clk 0:02:28.9]}
21. Qe2 {[%clk 0:03:41.9]} 21... Bxd2+ {[%clk 0:02:25.6]} 22. Qxd2 {[%clk
0:03:40.8]} 22... Rd8 {[%clk 0:02:20]} 23. Qe2 {[%clk 0:03:31.3]} 23... Qf4+
{[%clk 0:02:18.5]} 24. Qd2 {[%clk 0:03:23.4]} 24... Qxd2# {[%clk 0:02:18.1]} 0-1

[Event "Live Chess"]
[Site "Chess.com"]
[Date "2023.05.20"]
[Round "-"]
[White "thrithik"]
[Black "chrisbradgate"]
[Result "0-1"]
[WhiteElo "635"]
[BlackElo "828"]
[TimeControl "300"]
[EndTime "9:09:30 PDT"]
[Termination "chrisbradgate won by checkmate"]

1. a4 {[%clk 0:04:54.1]} 1... e5 {[%clk 0:04:56.2]} 2. g3 {[%clk 0:04:42.3]}
2... Nc6 {[%clk 0:04:54.1]} 3. f4 {[%clk 0:04:40]} 3... Bd6 {[%clk 0:04:50.1]}
4. Bg2 {[%clk 0:04:38.1]} 4... exf4 {[%clk 0:04:45.5]} 5. gxf4 {[%clk
0:04:35.1]} 5... Nf6 {[%clk 0:04:44.2]} 6. d3 {[%clk 0:04:26]} 6... O-O {[%clk
0:04:41.1]} 7. Qd2 {[%clk 0:04:22.8]} 7... Bb4 {[%clk 0:04:38.9]} 8. Kd1 {[%clk
0:04:13.7]} 8... Bxd2 {[%clk 0:04:37.4]} 9. Bxd2 {[%clk 0:04:11.7]} 9... Nd4
{[%clk 0:04:27]} 10. c3 {[%clk 0:04:08.1]} 10... Nf5 {[%clk 0:04:24.5]} 11. d4
{[%clk 0:04:05]} 11... c6 {[%clk 0:04:23.2]} 12. Na3 {[%clk 0:04:03.1]} 12... d5
{[%clk 0:04:21.9]} 13. Nc2 {[%clk 0:03:59.4]} 13... Re8 {[%clk 0:04:18.8]} 14.
Nb4 {[%clk 0:03:56.2]} 14... Ne3+ {[%clk 0:04:05.7]} 15. Bxe3 {[%clk 0:03:53.2]}
15... Rxe3 {[%clk 0:04:04.4]} 16. Ke1 {[%clk 0:03:43.8]} 16... Qe8 {[%clk
0:03:59.7]} 17. Bxd5 {[%clk 0:03:30.1]} 17... Nxd5 {[%clk 0:03:56.5]} 18. Nxd5
{[%clk 0:03:28]} 18... cxd5 {[%clk 0:03:55.3]} 19. b4 {[%clk 0:03:21.4]} 19...
Bg4 {[%clk 0:03:51.2]} 20. b5 {[%clk 0:03:02.6]} 20... Bxe2 {[%clk 0:03:47.6]}
21. Nxe2 {[%clk 0:02:58.7]} 21... Rxe2+ {[%clk 0:03:46.5]} 22. Kd1 {[%clk
0:02:54.7]} 22... Re3 {[%clk 0:03:37.5]} 23. a5 {[%clk 0:02:51.5]} 23... Qe7
{[%clk 0:03:32.5]} 24. a6 {[%clk 0:02:49.3]} 24... b6 {[%clk 0:03:30]} 25. Ra4
{[%clk 0:02:43.7]} 25... Re8 {[%clk 0:03:28.2]} 26. c4 {[%clk 0:02:42.6]} 26...
Re1+ {[%clk 0:03:25.8]} 27. Rxe1 {[%clk 0:02:38.4]} 27... Qxe1+ {[%clk
0:03:24.5]} 28. Kc2 {[%clk 0:02:35.9]} 28... Qe2+ {[%clk 0:03:16.2]} 29. Kb3
{[%clk 0:02:31.6]} 29... Re3+ {[%clk 0:03:11]} 30. Kb4 {[%clk 0:02:29.6]} 30...
Qb2# {[%clk 0:03:09.7]} 0-1

[Event "Live Chess"]
[Site "Chess.com"]
[Date "2023.05.20"]
[Round "-"]
[White "grillage"]
[Black "CroasArRheun"]
[Result "0-1"]
[WhiteElo "1832"]
[BlackElo "1839"]
[TimeControl "300"]
[EndTime "9:09:34 PDT"]
[Termination "CroasArRheun won by resignation"]

1. d4 {[%clk 0:04:59.1]} 1... d5 {[%clk 0:04:58.9]} 2. Nf3 {[%clk 0:04:56.6]}
2... Nf6 {[%clk 0:04:57]} 3. c4 {[%clk 0:04:55.4]} 3... e6 {[%clk 0:04:56.3]} 4.
cxd5 {[%clk 0:04:53.2]} 4... exd5 {[%clk 0:04:55.4]} 5. Nc3 {[%clk 0:04:51.8]}
5... c6 {[%clk 0:04:54.1]} 6. Qc2 {[%clk 0:04:50.3]} 6... Nbd7 {[%clk 0:04:53]}
7. Bg5 {[%clk 0:04:48.8]} 7... Be7 {[%clk 0:04:51.7]} 8. e3 {[%clk 0:04:47.9]}
8... O-O {[%clk 0:04:50.8]} 9. Bd3 {[%clk 0:04:46.9]} 9... h6 {[%clk 0:04:50.1]}
10. Bf4 {[%clk 0:04:41.7]} 10... Nb6 {[%clk 0:04:48.6]} 11. O-O {[%clk
0:04:39.5]} 11... Bd6 {[%clk 0:04:47.8]} 12. Bxd6 {[%clk 0:04:34.9]} 12... Qxd6
{[%clk 0:04:47.7]} 13. Rab1 {[%clk 0:04:32.6]} 13... Bg4 {[%clk 0:04:43]} 14.
Ne5 {[%clk 0:04:31]} 14... Be6 {[%clk 0:04:37.7]} 15. b4 {[%clk 0:04:18.9]}
15... Nbd7 {[%clk 0:04:34.3]} 16. Na4 {[%clk 0:04:08.1]} 16... Nxe5 {[%clk
0:04:29.7]} 17. dxe5 {[%clk 0:04:07]} 17... Qxe5 {[%clk 0:04:29.6]} 18. Nc5
{[%clk 0:04:04.7]} 18... Ng4 {[%clk 0:04:22.6]} 19. g3 {[%clk 0:04:02]} 19...
Qh5 {[%clk 0:04:20.6]} 20. h4 {[%clk 0:03:57]} 20... g5 {[%clk 0:04:17.2]} 21.
Bf5 {[%clk 0:03:39.6]} 21... gxh4 {[%clk 0:04:09.2]} 22. Nxe6 {[%clk 0:03:32.3]}
22... hxg3 {[%clk 0:03:45.5]} 23. Bh7+ {[%clk 0:03:14.2]} 23... Kh8 {[%clk
0:03:44.7]} 24. fxg3 {[%clk 0:03:00.2]} 24... fxe6 {[%clk 0:03:36.8]} 25. Bg6
{[%clk 0:02:57.6]} 25... Qh3 {[%clk 0:03:18.4]} 26. Qb2+ {[%clk 0:02:51.9]}
26... e5 {[%clk 0:03:15.4]} 27. Qg2 {[%clk 0:02:40.4]} 27... Qxg2+ {[%clk
0:03:12.3]} 28. Kxg2 {[%clk 0:02:39.6]} 28... Nxe3+ {[%clk 0:03:11.7]} 29. Kg1
{[%clk 0:02:38.9]} 29... Nxf1 {[%clk 0:03:10.8]} 30. Rxf1 {[%clk 0:02:38.4]}
30... Rxf1+ {[%clk 0:03:09.5]} 31. Kxf1 {[%clk 0:02:38.2]} 31... Kg7 {[%clk
0:03:09]} 32. Bf5 {[%clk 0:02:35.7]} 32... Rf8 {[%clk 0:03:07.6]} 33. g4 {[%clk
0:02:35]} 33... h5 {[%clk 0:03:06.1]} 0-1

[Event "Live Chess"]
[Site "Chess.com"]
[Date "2023.05.20"]
[Round "-"]
[White "seuen"]
[Black "ZackirtyChess"]
[Result "0-1"]
[WhiteElo "1134"]
[BlackElo "1144"]
[TimeControl "300"]
[EndTime "9:09:49 PDT"]
[Termination "ZackirtyChess won by checkmate"]

1. e4 {[%clk 0:04:58.4]} 1... e5 {[%clk 0:04:58.8]} 2. Nf3 {[%clk 0:04:57.5]}
2... Nf6 {[%clk 0:04:56.4]} 3. Nxe5 {[%clk 0:04:56.3]} 3... Nxe4 {[%clk
0:04:54.5]} 4. Nf3 {[%clk 0:04:54.8]} 4... Nc6 {[%clk 0:04:50.6]} 5. Nc3 {[%clk
0:04:54.1]} 5... Nxc3 {[%clk 0:04:48.8]} 6. dxc3 {[%clk 0:04:54]} 6... Bc5
{[%clk 0:04:47]} 7. Bb5 {[%clk 0:04:47.1]} 7... O-O {[%clk 0:04:40.5]} 8. O-O
{[%clk 0:04:45.2]} 8... Re8 {[%clk 0:04:36.1]} 9. Bg5 {[%clk 0:04:40.3]} 9... f6
{[%clk 0:04:25.2]} 10. Bc4+ {[%clk 0:04:39.8]} 10... Kh8 {[%clk 0:04:23.6]} 11.
Bh4 {[%clk 0:04:32.4]} 11... d6 {[%clk 0:04:17.1]} 12. b4 {[%clk 0:04:28.7]}
12... Bb6 {[%clk 0:04:14.2]} 13. a4 {[%clk 0:04:28]} 13... a5 {[%clk 0:04:06.4]}
14. b5 {[%clk 0:04:22.2]} 14... Ne5 {[%clk 0:04:04.6]} 15. Nxe5 {[%clk 0:04:21]}
15... dxe5 {[%clk 0:04:02.5]} 16. Qf3 {[%clk 0:04:16.5]} 16... Be6 {[%clk
0:03:48.6]} 17. Bxe6 {[%clk 0:04:05.1]} 17... Rxe6 {[%clk 0:03:48.5]} 18. Qxb7
{[%clk 0:04:03.9]} 18... Rb8 {[%clk 0:03:37.9]} 19. Qf3 {[%clk 0:03:59.5]} 19...
Qd2 {[%clk 0:03:29.6]} 20. Rac1 {[%clk 0:03:46]} 20... e4 {[%clk 0:03:18.4]} 21.
Qf4 {[%clk 0:03:34.6]} 21... Qxf4 {[%clk 0:03:14.7]} 22. g3 {[%clk 0:03:32.5]}
22... Qh6 {[%clk 0:03:07.4]} 23. Rcd1 {[%clk 0:03:30.5]} 23... Ree8 {[%clk
0:03:01.7]} 24. Rd7 {[%clk 0:03:29.3]} 24... Red8 {[%clk 0:02:56.6]} 25. Rf7
{[%clk 0:03:20.1]} 25... Qg6 {[%clk 0:02:50.2]} 26. Re7 {[%clk 0:03:19.2]} 26...
Re8 {[%clk 0:02:47]} 27. Rd7 {[%clk 0:03:16.9]} 27... Rbd8 {[%clk 0:02:45.9]}
28. Rfd1 {[%clk 0:03:13.2]} 28... Rxd7 {[%clk 0:02:43.6]} 29. Rxd7 {[%clk
0:03:13.1]} 29... Qf5 {[%clk 0:02:36.6]} 30. Rd1 {[%clk 0:02:49.6]} 30... Qxf2+
{[%clk 0:02:33.5]} 31. Kh1 {[%clk 0:02:48.3]} 31... Qf3# {[%clk 0:02:31.1]} 0-1

[Event "Live Chess"]
[Site "Chess.com"]
[Date "2023.05.20"]
[Round "-"]
[White "Supertromp"]
[Black "FlyingChessKestrel13"]
[Result "0-1"]
[WhiteElo "2160"]
[BlackElo "2150"]
[TimeControl "300"]
[EndTime "9:09:52 PDT"]
[Termination "FlyingChessKestrel13 won by resignation"]

1. e4 {[%clk 0:04:54.6]} 1... Nc6 {[%clk 0:04:56.1]} 2. Nf3 {[%clk 0:04:52.4]}
2... e5 {[%clk 0:04:55.7]} 3. Bc4 {[%clk 0:04:51.2]} 3... Bc5 {[%clk 0:04:52.6]}
4. c3 {[%clk 0:04:50.1]} 4... Nf6 {[%clk 0:04:50.6]} 5. d4 {[%clk 0:04:49.1]}
5... exd4 {[%clk 0:04:50]} 6. b4 {[%clk 0:04:48.1]} 6... Bb6 {[%clk 0:04:47.6]}
7. e5 {[%clk 0:04:46.2]} 7... d5 {[%clk 0:04:45.9]} 8. exf6 {[%clk 0:04:45]}
8... dxc4 {[%clk 0:04:45]} 9. Qe2+ {[%clk 0:04:42.9]} 9... Be6 {[%clk
0:04:41.7]} 10. b5 {[%clk 0:04:41.8]} 10... d3 {[%clk 0:04:38.7]} 11. Qe4 {[%clk
0:04:40.8]} 11... O-O {[%clk 0:03:51.2]} 12. bxc6 {[%clk 0:04:25.5]} 12... Re8
{[%clk 0:03:49.5]} 13. O-O {[%clk 0:04:19.8]} 13... bxc6 {[%clk 0:03:45.9]} 14.
Ng5 {[%clk 0:03:49.4]} 14... g6 {[%clk 0:03:39.3]} 15. Nxh7 {[%clk 0:03:39.9]}
15... Kxh7 {[%clk 0:03:31.4]} 16. Qh4+ {[%clk 0:03:21.3]} 16... Kg8 {[%clk
0:03:29.1]} 17. Bh6 {[%clk 0:03:16.4]} 17... Qd5 {[%clk 0:03:14.1]} 18. g4
{[%clk 0:02:48.2]} 18... Qf3 {[%clk 0:03:02.9]} 19. h3 {[%clk 0:02:39.6]} 19...
Bd5 {[%clk 0:02:59.7]} 0-1

[Event "Live Chess"]
[Site "Chess.com"]
[Date "2023.05.20"]
[Round "-"]
[White "Chris_pea"]
[Black "PureMellowPlan"]
[Result "0-1"]
[WhiteElo "615"]
[BlackElo "597"]
[TimeControl "300"]
[EndTime "9:09:53 PDT"]
[Termination "PureMellowPlan won by checkmate"]

1. e4 {[%clk 0:04:56]} 1... e5 {[%clk 0:04:58.4]} 2. Nc3 {[%clk 0:04:53.4]} 2...
Nf6 {[%clk 0:04:55.7]} 3. f4 {[%clk 0:04:51.3]} 3... d6 {[%clk 0:04:49.8]} 4.
Nf3 {[%clk 0:04:46.8]} 4... Nc6 {[%clk 0:04:44.1]} 5. Bb5 {[%clk 0:04:43.1]}
5... Bd7 {[%clk 0:04:42.1]} 6. d3 {[%clk 0:04:40.5]} 6... a6 {[%clk 0:04:37.6]}
7. Bxc6 {[%clk 0:04:38.4]} 7... Bxc6 {[%clk 0:04:35.7]} 8. O-O {[%clk
0:04:29.2]} 8... d5 {[%clk 0:04:33.3]} 9. fxe5 {[%clk 0:04:14]} 9... Nd7 {[%clk
0:04:28.3]} 10. Bg5 {[%clk 0:03:54.9]} 10... f6 {[%clk 0:04:23.6]} 11. Bh4
{[%clk 0:03:53.4]} 11... Be7 {[%clk 0:04:14.7]} 12. exf6 {[%clk 0:03:50.7]}
12... Bxf6 {[%clk 0:04:11.6]} 13. Bxf6 {[%clk 0:03:48.4]} 13... Nxf6 {[%clk
0:04:07.6]} 14. Qe2 {[%clk 0:03:43.4]} 14... dxe4 {[%clk 0:04:04.7]} 15. Nxe4
{[%clk 0:03:36.8]} 15... O-O {[%clk 0:04:01]} 16. Nxf6+ {[%clk 0:03:29.4]} 16...
Qxf6 {[%clk 0:03:56.4]} 17. Nd2 {[%clk 0:03:18.4]} 17... Qxb2 {[%clk 0:03:51.7]}
18. Rab1 {[%clk 0:03:12.8]} 18... Qxc2 {[%clk 0:03:46]} 19. Rxf8+ {[%clk
0:02:55.4]} 19... Rxf8 {[%clk 0:03:41.9]} 20. Qe6+ {[%clk 0:02:50.9]} 20... Kh8
{[%clk 0:03:34.2]} 21. Qe7 {[%clk 0:02:40.6]} 21... Rg8 {[%clk 0:03:30.5]} 22.
Rf1 {[%clk 0:02:27.4]} 22... h6 {[%clk 0:03:22]} 23. Nb3 {[%clk 0:02:13.8]}
23... Qxg2# {[%clk 0:02:59.4]} 0-1

[Event "Live Chess"]
[Site "Chess.com"]
[Date "2023.05.20"]
[Round "-"]
[White "WilliamofOrange16th"]
[Black "Hacker_2009"]
[Result "1-0"]
[WhiteElo "1932"]
[BlackElo "1932"]
[TimeControl "300"]
[EndTime "9:09:59 PDT"]
[Termination "WilliamofOrange16th won by resignation"]

1. b3 {[%clk 0:04:57.8]} 1... Nf6 {[%clk 0:04:58.4]} 2. Bb2 {[%clk 0:04:54.8]}
2... e6 {[%clk 0:04:57.6]} 3. e3 {[%clk 0:04:53.2]} 3... d5 {[%clk 0:04:56.8]}
4. c4 {[%clk 0:04:52.9]} 4... c6 {[%clk 0:04:54.4]} 5. d4 {[%clk 0:04:49.6]}
5... Bd6 {[%clk 0:04:53.4]} 6. Nc3 {[%clk 0:04:49.2]} 6... O-O {[%clk
0:04:52.4]} 7. Bd3 {[%clk 0:04:47.5]} 7... b6 {[%clk 0:04:51.6]} 8. Nge2 {[%clk
0:04:43.9]} 8... Bb7 {[%clk 0:04:51.1]} 9. e4 {[%clk 0:04:38.3]} 9... dxe4
{[%clk 0:04:49.3]} 10. Nxe4 {[%clk 0:04:37.9]} 10... Nxe4 {[%clk 0:04:47.4]} 11.
Bxe4 {[%clk 0:04:37.8]} 11... Qc7 {[%clk 0:04:43.2]} 12. Qc2 {[%clk 0:04:29.8]}
12... h6 {[%clk 0:04:41.6]} 13. g3 {[%clk 0:04:17]} 13... c5 {[%clk 0:04:39.4]}
14. O-O-O {[%clk 0:04:09.1]} 14... Bxe4 {[%clk 0:04:36.9]} 15. Qxe4 {[%clk
0:04:08.6]} 15... Na6 {[%clk 0:04:32.5]} 16. d5 {[%clk 0:03:54.3]} 16... exd5
{[%clk 0:04:26.7]} 17. Qxd5 {[%clk 0:03:50.1]} 17... Rad8 {[%clk 0:04:21.8]} 18.
Qf5 {[%clk 0:03:38.9]} 18... Rfe8 {[%clk 0:04:13.1]} 19. Rhe1 {[%clk 0:03:32.7]}
19... Be5 {[%clk 0:04:06.8]} 20. Bxe5 {[%clk 0:03:15.7]} 20... Rxd1+ {[%clk
0:04:04.9]} 21. Rxd1 {[%clk 0:03:14]} 21... Qxe5 {[%clk 0:04:02.4]} 22. Qxe5
{[%clk 0:03:08.6]} 22... Rxe5 {[%clk 0:04:02.3]} 23. Rd8+ {[%clk 0:03:06.4]}
23... Kh7 {[%clk 0:04:00.6]} 24. Nf4 {[%clk 0:03:03.6]} 24... Nb4 {[%clk
0:03:53.7]} 25. Rd7 {[%clk 0:02:55.7]} 25... Re1+ {[%clk 0:03:50.7]} 26. Kb2
{[%clk 0:02:40.5]} 26... Rf1 {[%clk 0:03:47.4]} 27. Rd2 {[%clk 0:02:36.6]} 27...
Nc6 {[%clk 0:03:44.6]} 28. a3 {[%clk 0:02:30.6]} 28... Nd4 {[%clk 0:03:43.6]}
29. h4 {[%clk 0:02:27.7]} 29... g5 {[%clk 0:03:12.9]} 30. hxg5 {[%clk
0:02:24.3]} 30... hxg5 {[%clk 0:03:12.8]} 31. Nd5 {[%clk 0:02:23.6]} 31... Kg6
{[%clk 0:03:09.2]} 32. Ne3 {[%clk 0:02:16]} 32... f5 {[%clk 0:03:04.9]} 33. Nxf1
{[%clk 0:02:14.4]} 1-0

[Event "Live Chess"]
[Site "Chess.com"]
[Date "2023.05.20"]
[Round "-"]
[White "Bob2pen"]
[Black "DRS44"]
[Result "1-0"]
[WhiteElo "1597"]
[BlackElo "1435"]
[TimeControl "300"]
[EndTime "9:10:03 PDT"]
[Termination "Bob2pen won by resignation"]

1. c4 {[%clk 0:04:36.7]} 1... e5 {[%clk 0:04:52.4]} 2. g3 {[%clk 0:04:33.8]}
2... Nf6 {[%clk 0:04:37.5]} 3. Bg2 {[%clk 0:04:32.3]} 3... c6 {[%clk 0:04:32]}
4. e3 {[%clk 0:04:29.6]} 4... Bc5 {[%clk 0:04:12.1]} 5. Nc3 {[%clk 0:04:27.1]}
5... O-O {[%clk 0:04:05.2]} 6. Nge2 {[%clk 0:04:25.6]} 6... d5 {[%clk
0:03:50.7]} 7. cxd5 {[%clk 0:04:23.7]} 7... cxd5 {[%clk 0:03:47.8]} 8. d4 {[%clk
0:04:21.8]} 8... exd4 {[%clk 0:03:43.1]} 9. Nxd4 {[%clk 0:04:20.6]} 9... Nc6
{[%clk 0:03:37.8]} 10. Nce2 {[%clk 0:04:18.9]} 10... Bg4 {[%clk 0:03:31.3]} 11.
O-O {[%clk 0:04:14.5]} 11... Ne4 {[%clk 0:03:21.9]} 12. Qc2 {[%clk 0:04:11]}
12... Bxe2 {[%clk 0:03:15.4]} 13. Nxe2 {[%clk 0:04:04.2]} 13... Nb4 {[%clk
0:03:04.7]} 14. Qb3 {[%clk 0:03:55.7]} 14... Nc2 {[%clk 0:02:45.6]} 15. Qxc2
{[%clk 0:03:51.4]} 15... f5 {[%clk 0:02:36.9]} 16. Bxe4 {[%clk 0:03:48]} 16...
fxe4 {[%clk 0:02:33.1]} 17. Qxc5 {[%clk 0:03:46.6]} 1-0

[Event "Live Chess"]
[Site "Chess.com"]
[Date "2023.05.20"]
[Round "-"]
[White "xx_blindpuffin_xx"]
[Black "akp42"]
[Result "1-0"]
[WhiteElo "2202"]
[BlackElo "1981"]
[TimeControl "300"]
[EndTime "9:10:07 PDT"]
[Termination "xx_blindpuffin_xx won by resignation"]

1. d4 {[%clk 0:04:59.1]} 1... Nf6 {[%clk 0:04:57.6]} 2. Bf4 {[%clk 0:04:57.4]}
2... d5 {[%clk 0:04:55.1]} 3. e3 {[%clk 0:04:56.3]} 3... e6 {[%clk 0:04:54.2]}
4. Nf3 {[%clk 0:04:55.2]} 4... Bd6 {[%clk 0:04:52.9]} 5. Bg3 {[%clk 0:04:54]}
5... c5 {[%clk 0:04:46.2]} 6. c3 {[%clk 0:04:51.6]} 6... Qc7 {[%clk 0:04:44.8]}
7. Bd3 {[%clk 0:04:49.3]} 7... Nbd7 {[%clk 0:04:43.7]} 8. Nbd2 {[%clk
0:04:47.9]} 8... O-O {[%clk 0:04:41]} 9. Bxd6 {[%clk 0:04:34.6]} 9... Qxd6
{[%clk 0:04:38.5]} 10. O-O {[%clk 0:04:34.5]} 10... h6 {[%clk 0:04:37]} 11. Rc1
{[%clk 0:04:23.1]} 11... e5 {[%clk 0:04:35.6]} 12. dxe5 {[%clk 0:04:22.2]} 12...
Nxe5 {[%clk 0:04:33.8]} 13. Nxe5 {[%clk 0:04:21.7]} 13... Qxe5 {[%clk
0:04:32.7]} 14. Qf3 {[%clk 0:04:19]} 14... Bg4 {[%clk 0:04:25.6]} 15. Qf4 {[%clk
0:04:17.2]} 15... Qxf4 {[%clk 0:04:22.3]} 16. exf4 {[%clk 0:04:17.1]} 16... Rfe8
{[%clk 0:04:17.2]} 17. f3 {[%clk 0:04:12.1]} 17... Bd7 {[%clk 0:04:10.3]} 18.
Rfe1 {[%clk 0:04:10.1]} 18... Bc6 {[%clk 0:04:09]} 19. b4 {[%clk 0:03:56.3]}
19... b6 {[%clk 0:03:59.3]} 20. Bb1 {[%clk 0:03:47.6]} 20... Kf8 {[%clk
0:03:56.2]} 21. Nb3 {[%clk 0:03:46.1]} 21... Nh5 {[%clk 0:03:39]} 22. g3 {[%clk
0:03:39.7]} 22... d4 {[%clk 0:03:31.3]} 23. cxd4 {[%clk 0:03:30.6]} 23... Bxf3
{[%clk 0:03:25.4]} 24. dxc5 {[%clk 0:03:26.8]} 24... bxc5 {[%clk 0:03:23]} 25.
Nxc5 {[%clk 0:03:24.7]} 25... Rab8 {[%clk 0:03:17.4]} 26. Nd7+ {[%clk
0:03:22.8]} 26... Kg8 {[%clk 0:03:14.6]} 27. Nxb8 {[%clk 0:03:22.7]} 27... Rxb8
{[%clk 0:03:13.5]} 28. a3 {[%clk 0:03:16.7]} 28... Nf6 {[%clk 0:03:08.8]} 29.
Rc7 {[%clk 0:03:12.2]} 29... a5 {[%clk 0:03:03.6]} 30. bxa5 {[%clk 0:03:09.8]}
30... Ra8 {[%clk 0:03:02.8]} 31. Kf2 {[%clk 0:03:05.3]} 31... Bg4 {[%clk
0:02:59]} 32. Rb7 {[%clk 0:02:52.8]} 32... Rxa5 {[%clk 0:02:56.6]} 33. Rb8+
{[%clk 0:02:51.7]} 1-0

[Event "Live Chess"]
[Site "Chess.com"]
[Date "2023.05.20"]
[Round "-"]
[White "Ferrarifan27"]
[Black "Balu13"]
[Result "1-0"]
[WhiteElo "2175"]
[BlackElo "816"]
[TimeControl "300"]
[EndTime "9:10:16 PDT"]
[Termination "Ferrarifan27 won by resignation"]

1. e4 {[%clk 0:04:58.7]} 1... d5 {[%clk 0:04:59.9]} 2. exd5 {[%clk 0:04:57.4]}
2... Qxd5 {[%clk 0:04:59.5]} 3. Nc3 {[%clk 0:04:56]} 3... Qa5 {[%clk 0:04:59.2]}
4. Nf3 {[%clk 0:04:53.8]} 4... Nf6 {[%clk 0:04:56]} 5. d4 {[%clk 0:04:51.3]}
5... Bg4 {[%clk 0:04:55.4]} 6. Bd2 {[%clk 0:04:49.1]} 6... Nc6 {[%clk 0:04:52]}
7. Be2 {[%clk 0:04:44.9]} 7... O-O-O {[%clk 0:04:45.8]} 8. Nb5 {[%clk
0:04:36.8]} 8... Qb6 {[%clk 0:04:32.9]} 9. a4 {[%clk 0:04:24.5]} 9... e6 {[%clk
0:04:17.2]} 10. a5 {[%clk 0:04:21.6]} 10... Nxa5 {[%clk 0:04:16]} 11. Bxa5
{[%clk 0:04:18.8]} 11... Bb4+ {[%clk 0:03:59.3]} 12. Bxb4 {[%clk 0:04:15.2]}
12... Bxf3 {[%clk 0:03:55.2]} 13. Bxf3 {[%clk 0:04:05.5]} 13... Rxd4 {[%clk
0:03:50.7]} 14. Qxd4 {[%clk 0:04:01.5]} 14... Qxb5 {[%clk 0:03:37.2]} 15. Rxa7
{[%clk 0:03:59]} 15... Nd7 {[%clk 0:02:16.3]} 16. Rxb7 {[%clk 0:03:31.4]} 16...
Qa5 {[%clk 0:02:14]} 17. Bxa5 {[%clk 0:03:29.3]} 1-0